2CCN - Level 2 Cost Centre Name,,9CCN - Level 9 Cost Centre Name,9CCC - Level 9 Cost Centre Code,9AN - Level 9 Account Name,9AC - Level 9 Account Code,Date posted,Date of transaction,Merchant Name,Merchant City,Merchant State,Merchant Zip Code,Originating Account Name,Originating Account Number,MCC/SIC Code,MCC Description,Original Amount,Currency,Conversion Rate,Billed Amount,Debit Credit,Reference Number,Statement Cycle,Account Name
Gloucester City Council,23UE,Museum of Gloucester,MU002,Catering Provisions,3103,23/04/2018,20/04/2018,ASDA SUPERSTORE,GLOUCESTER,GBR,GL1 1DS,REDACTED,556*********2362,5411,"GROCERY STORES, SUPERMARKETS",28.91,Pound Sterling (826),1.000000000,28.91,Debit,45377758111060218846361,02/05/2018,GLOUCESTER CC
Gloucester City Council,23UE,Museum of Gloucester,MU002,General Supplies/Materials,3025,23/04/2018,20/04/2018,POUNDLAND LTD,WILLENHALL,,WV13 2QT,REDACTED,556*********2362,5310,DISCOUNT STORES,10,Pound Sterling (826),1.000000000,10,Debit,85481478111034800062624,02/05/2018,GLOUCESTER CC
Gloucester City Council,23UE,Museum of Gloucester,MU002,General Supplies/Materials,3025,23/04/2018,21/04/2018,POUNDLAND LTD 1167,GLOUCESTER,,GL11XH,REDACTED,556*********2362,5310,DISCOUNT STORES,10,Pound Sterling (826),1.000000000,10,Debit,85481478112035058734755,02/05/2018,GLOUCESTER CC
Gloucester City Council,23UE,Museum of Gloucester,MU002,General Supplies/Materials,3025,23/04/2018,21/04/2018,A WRITE CARD,WALSALL,GBR,GL1 1XN,REDACTED,556*********2362,5947,"GIFT, CARD, NOVELTY, AND SOUVENIR SHOPS",1.99,Pound Sterling (826),1.000000000,1.99,Debit,05272478112910003518415,02/05/2018,GLOUCESTER CC
Gloucester City Council,23UE,Museum of Gloucester,MU002,General Supplies/Materials,3025,24/04/2018,23/04/2018,Amazon UK Marketplace,800-279-6620,LUX,L2338,REDACTED,556*********2362,5942,BOOK STORES,25.99,Pound Sterling (826),1.000000000,25.99,Debit,55204728113200747400202,02/05/2018,GLOUCESTER CC
Gloucester City Council,23UE,Gloucester Life Museum,MU005,General Supplies/Materials,3025,26/04/2018,25/04/2018,Amazon EU,AMAZON.CO.UK,LUX,L2338,REDACTED,556*********2362,5969,ALL OTHER DIRECT MARKETERS,39.99,Pound Sterling (826),1.000000000,39.99,Debit,55204728115200120582871,02/05/2018,GLOUCESTER CC
Gloucester City Council,23UE,Museum of Gloucester,MU002,General Supplies/Materials,3025,27/04/2018,26/04/2018,Amazon UK Marketplace,800-279-6620,LUX,L2338,REDACTED,556*********2362,5942,BOOK STORES,9.49,Pound Sterling (826),1.000000000,9.49,Debit,55204728116200282945097,02/05/2018,GLOUCESTER CC
Gloucester City Council,23UE,Gloucester Life Museum,MU005,Catering Provisions,3103,27/04/2018,26/04/2018,ASDA SUPERSTORE,GLOUCESTER,GBR,GL1 1DS,REDACTED,556*********2362,5411,"GROCERY STORES, SUPERMARKETS",8,Pound Sterling (826),1.000000000,8,Debit,45377758117000201436253,02/05/2018,GLOUCESTER CC
Gloucester City Council,23UE,Gloucester Life Museum,MU005,Catering Provisions,3103,30/04/2018,28/04/2018,ASDA SUPERSTORE,GLOUCESTER,GBR,GL1 1DS,REDACTED,556*********2362,5411,"GROCERY STORES, SUPERMARKETS",5.92,Pound Sterling (826),1.000000000,5.92,Debit,15377758119010644407564,02/05/2018,GLOUCESTER CC
Gloucester City Council,23UE,Gloucester Life Museum,MU005,General Supplies/Materials,3025,30/04/2018,29/04/2018,Amazon UK Marketplace,800-279-6620,LUX,L2338,REDACTED,556*********2362,5942,BOOK STORES,23.96,Pound Sterling (826),1.000000000,23.96,Debit,55204728119200920008768,02/05/2018,GLOUCESTER CC
Gloucester City Council,23UE,Gloucester Life Museum,MU005,General Supplies/Materials,3025,30/04/2018,30/04/2018,Amazon UK Marketplace,800-279-6620,LUX,L2338,REDACTED,556*********2362,5942,BOOK STORES,45.99,Pound Sterling (826),1.000000000,45.99,Debit,55204728120200991019543,02/05/2018,GLOUCESTER CC
Gloucester City Council,23UE,Museum of Gloucester,MU002,General Supplies/Materials,3025,01/05/2018,30/04/2018,Amazon UK Marketplace,800-279-6620,LUX,L2338,REDACTED,556*********2362,5942,BOOK STORES,23.96,Pound Sterling (826),1.000000000,23.96,Debit,55204728120200019296057,02/05/2018,GLOUCESTER CC
Gloucester City Council,23UE,Head of Regeneration & Economic Development,MT005,Professional Advice/Consultants fees,3952,20/04/2018,19/04/2018,EB *CHAMBER NETWORKING,801-413-7200,IRL,DUBLIN 8,REDACTED,556*********1418,7399,BUSINESS SERVICES NOT ELSEWHERE CLASSIFIED,18,Pound Sterling (826),1.000000000,18,Debit,15276328110000176610142,02/05/2018,GLOUCESTER CC
Gloucester City Council,23UE,Head of Regeneration & Economic Development,MT005,Professional Advice/Consultants fees,3952,24/04/2018,23/04/2018,EXPEDIA 7347523257492,EXPEDIA.CO.UK,ESP,38002,REDACTED,556*********1418,4722,TRAVEL AGENCIES,136,Pound Sterling (826),1.000000000,136,Debit,55204728113200736549407,02/05/2018,GLOUCESTER CC
Gloucester City Council,23UE,Guildhall Bar & Caf�,GH005,Catering Provisions,3103,04/04/2018,03/04/2018,ICELAND,GLOUCESTER,GBR,GL1 1SA,REDACTED,556*********1155,5411,"GROCERY STORES, SUPERMARKETS",3.96,Pound Sterling (826),1.000000000,3.96,Debit,35377758094030144499488,02/05/2018,GLOUCESTER CC
Gloucester City Council,23UE,Guildhall Events,GH002,Professional Advice/Consultants fees,3952,09/04/2018,06/04/2018,WILKO RETAIL LIMIT,GLOUCESTER 14,,GL11SL,REDACTED,556*********1155,5722,HOUSEHOLD APPLIANCE STORES,40.05,Pound Sterling (826),1.000000000,40.05,Debit,85481478097031431782073,02/05/2018,GLOUCESTER CC
Gloucester City Council,23UE,Guildhall Events,GH002,Professional Advice/Consultants fees,3952,09/04/2018,06/04/2018,PRIMARK,GLOUCESTER,,GL1 1NN,REDACTED,556*********1155,5651,FAMILY CLOTHING STORES,12.5,Pound Sterling (826),1.000000000,12.5,Debit,55541968097907000037547,02/05/2018,GLOUCESTER CC
Gloucester City Council,23UE,Guildhall Events,GH002,Catering Provisions,3103,09/04/2018,08/04/2018,TESCO STORES (6819),GLOUCESTER,GBR,GL1 1TP,REDACTED,556*********1155,5411,"GROCERY STORES, SUPERMARKETS",7.59,Pound Sterling (826),1.000000000,7.59,Debit,05377758099061054862504,02/05/2018,GLOUCESTER CC
Gloucester City Council,23UE,Guildhall Events,GH002,Professional Advice/Consultants fees,3952,10/04/2018,09/04/2018,GLO'SHIRE CC WEB PCN,UXBRIDGE,GBR,UB8 2XW,REDACTED,556*********1155,7523,AUTOMOBILE PARKING LOTS AND GARAGES,35,Pound Sterling (826),1.000000000,35,Debit,25377758100070108825743,02/05/2018,GLOUCESTER CC
Gloucester City Council,23UE,Guildhall Bar & Caf�,GH005,Catering Provisions,3103,18/04/2018,17/04/2018,ICELAND,GLOUCESTER,GBR,GL1 1SA,REDACTED,556*********1155,5411,"GROCERY STORES, SUPERMARKETS",7.6,Pound Sterling (826),1.000000000,7.6,Debit,25377758108030081675178,02/05/2018,GLOUCESTER CC
Gloucester City Council,23UE,Guildhall Bar & Caf�,GH005,Catering Provisions,3103,18/04/2018,17/04/2018,ICELAND,GLOUCESTER,GBR,GL1 1SA,REDACTED,556*********1155,5411,"GROCERY STORES, SUPERMARKETS",4,Pound Sterling (826),1.000000000,4,Debit,25377758108030081674957,02/05/2018,GLOUCESTER CC
Gloucester City Council,23UE,Guildhall Bar & Caf�,GH005,Equipment and Furniture,3001,20/04/2018,19/04/2018,Amazon EU,AMAZON.CO.UK,LUX,L2338,REDACTED,556*********1155,5969,ALL OTHER DIRECT MARKETERS,39.99,Pound Sterling (826),1.000000000,39.99,Debit,55204728109200994343895,02/05/2018,GLOUCESTER CC
Gloucester City Council,23UE,Guildhall Bar & Caf�,GH005,Catering Provisions,3103,23/04/2018,20/04/2018,SAINSBURYS SACAT 0771,GLOUCESTER,GBR,GL1 2AG,REDACTED,556*********1155,5411,"GROCERY STORES, SUPERMARKETS",10.55,Pound Sterling (826),1.000000000,10.55,Debit,35425158111060196814288,02/05/2018,GLOUCESTER CC
Gloucester City Council,23UE,Guildhall Bar & Caf�,GH005,Catering Provisions,3103,23/04/2018,20/04/2018,ICELAND,GLOUCESTER,GBR,GL1 1SA,REDACTED,556*********1155,5411,"GROCERY STORES, SUPERMARKETS",7,Pound Sterling (826),1.000000000,7,Debit,25377758111060094420861,02/05/2018,GLOUCESTER CC
Gloucester City Council,23UE,Guildhall Bar & Caf�,GH005,Catering Provisions,3103,23/04/2018,20/04/2018,ICELAND,GLOUCESTER,GBR,GL1 1SA,REDACTED,556*********1155,5411,"GROCERY STORES, SUPERMARKETS",2,Pound Sterling (826),1.000000000,2,Debit,25377758111060094420549,02/05/2018,GLOUCESTER CC
Gloucester City Council,23UE,Guildhall Bar & Caf�,GH005,Catering Provisions,3103,27/04/2018,26/04/2018,TESCO STORES (6819),GLOUCESTER,GBR,GL1 1TP,REDACTED,556*********1155,5411,"GROCERY STORES, SUPERMARKETS",2.05,Pound Sterling (826),1.000000000,2.05,Debit,65377758117000369807723,02/05/2018,GLOUCESTER CC
Gloucester City Council,23UE,Guildhall Bar & Caf�,GH005,Catering Provisions,3103,30/04/2018,27/04/2018,BOOKER LIMITED GLOUCES,GLOUCESTER,GBR,GL4 3RT,REDACTED,556*********1155,5811,CATERERS,56.28,Pound Sterling (826),1.000000000,56.28,Debit,55184228117891187061297,02/05/2018,GLOUCESTER CC
Gloucester City Council,23UE,Tourist Information Centre,TI002,Equipment and Furniture,3001,06/04/2018,05/04/2018,PURBECK HOUSE,SWANAGE,,BH192LZ,REDACTED,556*********8997,7011,"LODGING, HOTELS, MOTELS, RESORTS",70,Pound Sterling (826),1.000000000,70,Debit,85481478096031202861826,02/05/2018,GLOUCESTER CC
Gloucester City Council,23UE,Tourist Information Centre,TI002,Equipment and Furniture,3001,19/04/2018,18/04/2018,Amazon UK Marketplace,800-279-6620,LUX,L2338,REDACTED,556*********8997,5942,BOOK STORES,139.99,Pound Sterling (826),1.000000000,139.99,Debit,55204728108200814063542,02/05/2018,GLOUCESTER CC
Gloucester City Council,23UE,Eastgate Market,MK003,Equipment and Furniture,3001,23/04/2018,20/04/2018,PAYPAL *GREENWOODS,35314369001,GBR,TW91EH,REDACTED,556*********8997,5719,MISCELLANEOUS HOUSE FURNISHING SPECIALITY STORES,100,Pound Sterling (826),1.000000000,100,Debit,85130088110815180841352,02/05/2018,GLOUCESTER CC
Gloucester City Council,23UE,Docks Complex - Services,AM006,Hospitality & Refreshments,3104,11/04/2018,10/04/2018,TESCO STORES (6819),GLOUCESTER,GBR,GL1 1TP,REDACTED,556*********4301,5411,"GROCERY STORES, SUPERMARKETS",9.39,Pound Sterling (826),1.000000000,9.39,Debit,65377758101080338337612,02/05/2018,GLOUCESTER CC
Gloucester City Council,23UE,Docks Complex - Services,AM006,Hospitality & Refreshments,3104,13/04/2018,12/04/2018,SAINSBURYS SACAT 2221,GLOUCESTER,GBR,GL2 5SA,REDACTED,556*********4301,5411,"GROCERY STORES, SUPERMARKETS",50,Pound Sterling (826),1.000000000,50,Debit,35425158103000164445830,02/05/2018,GLOUCESTER CC
Gloucester City Council,23UE,Docks Complex - Services,AM006,Hospitality & Refreshments,3104,27/04/2018,26/04/2018,B&M RETAIL LTD,HS GLOUCESTER,,GL12DH,REDACTED,556*********4301,5310,DISCOUNT STORES,7.96,Pound Sterling (826),1.000000000,7.96,Debit,85481478117036367536936,02/05/2018,GLOUCESTER CC
Gloucester City Council,23UE,Housing Services,HS001,B&B Payments,1303,04/04/2018,03/04/2018,TRAVELODGE GB0000,THAME,,OX9 3AT,REDACTED,556*********6959,3615,TRAVELODGE,88,Pound Sterling (826),1.000000000,88,Debit,55504438093298170742998,02/05/2018,GLOUCESTER CC
Gloucester City Council,23UE,Housing Services,HS001,B&B Payments,1303,04/04/2018,03/04/2018,TRAVELODGE GB0000,THAME,,OX9 3AT,REDACTED,556*********6959,3615,TRAVELODGE,353,Pound Sterling (826),1.000000000,353,Debit,55504438093298170691187,02/05/2018,GLOUCESTER CC
Gloucester City Council,23UE,Housing Services,HS001,B&B Payments,1303,05/04/2018,04/04/2018,Amerisuites,GLOUCESTER,,GL2 4NF,REDACTED,556*********6959,3514,AMERISUITES,285,Pound Sterling (826),1.000000000,285,Debit,85481478095030983278458,02/05/2018,GLOUCESTER CC
Gloucester City Council,23UE,Housing Services,HS001,B&B Payments,1303,05/04/2018,04/04/2018,Amerisuites,GLOUCESTER,,GL2 4NF,REDACTED,556*********6959,3514,AMERISUITES,560,Pound Sterling (826),1.000000000,560,Debit,85481478095030983278466,02/05/2018,GLOUCESTER CC
Gloucester City Council,23UE,Housing Services,HS001,B&B Payments,1303,05/04/2018,04/04/2018,TRAVELODGE GB0000,THAME,,OX9 3AT,REDACTED,556*********6959,3615,TRAVELODGE,308,Pound Sterling (826),1.000000000,308,Debit,55504438094298177806126,02/05/2018,GLOUCESTER CC
Gloucester City Council,23UE,Housing Services,HS001,B&B Payments,1303,05/04/2018,04/04/2018,TRAVELODGE GB0000,THAME,,OX9 3AT,REDACTED,556*********6959,3615,TRAVELODGE,475,Pound Sterling (826),1.000000000,475,Debit,55504438094298177803966,02/05/2018,GLOUCESTER CC
Gloucester City Council,23UE,Housing Services,HS001,B&B Payments,1303,05/04/2018,04/04/2018,TRAVELODGE GB0000,THAME,,OX9 3AT,REDACTED,556*********6959,3615,TRAVELODGE,333,Pound Sterling (826),1.000000000,333,Debit,55504438094298177803685,02/05/2018,GLOUCESTER CC
Gloucester City Council,23UE,Housing Services,HS001,B&B Payments,1303,06/04/2018,05/04/2018,TRAVELODGE GB0000,THAME,,OX9 3AT,REDACTED,556*********6959,3615,TRAVELODGE,398,Pound Sterling (826),1.000000000,398,Debit,55504438095298184597337,02/05/2018,GLOUCESTER CC
Gloucester City Council,23UE,Housing Services,HS001,B&B Payments,1303,06/04/2018,05/04/2018,TRAVELODGE GB0000,THAME,,OX9 3AT,REDACTED,556*********6959,3615,TRAVELODGE,533,Pound Sterling (826),1.000000000,533,Debit,55504438095298184609223,02/05/2018,GLOUCESTER CC
Gloucester City Council,23UE,Housing Services,HS001,B&B Payments,1303,06/04/2018,05/04/2018,TRAVELODGE GB0000,THAME,,OX9 3AT,REDACTED,556*********6959,3615,TRAVELODGE,67,Pound Sterling (826),1.000000000,67,Debit,55504438095298184632522,02/05/2018,GLOUCESTER CC
Gloucester City Council,23UE,Housing Services,HS001,B&B Payments,1303,06/04/2018,05/04/2018,TRAVELODGE GB0000,THAME,,OX9 3AT,REDACTED,556*********6959,3615,TRAVELODGE,317,Pound Sterling (826),1.000000000,317,Debit,55504438095298184642588,02/05/2018,GLOUCESTER CC
Gloucester City Council,23UE,Housing Services,HS001,B&B Payments,1303,09/04/2018,06/04/2018,Amerisuites,GLOUCESTER,,GL2 4NF,REDACTED,556*********6959,3514,AMERISUITES,560,Pound Sterling (826),1.000000000,560,Debit,85481478097031449618640,02/05/2018,GLOUCESTER CC
Gloucester City Council,23UE,Housing Services,HS001,B&B Payments,1303,10/04/2018,09/04/2018,TRAVELODGE GB0000,THAME,,OX9 3AT,REDACTED,556*********6959,3615,TRAVELODGE,71,Pound Sterling (826),1.000000000,71,Debit,55504438099298109143528,02/05/2018,GLOUCESTER CC
Gloucester City Council,23UE,Housing Services,HS001,B&B Payments,1303,10/04/2018,09/04/2018,TRAVELODGE GB0000,THAME,,OX9 3AT,REDACTED,556*********6959,3615,TRAVELODGE,510,Pound Sterling (826),1.000000000,510,Debit,55504438099298109142231,02/05/2018,GLOUCESTER CC
Gloucester City Council,23UE,Housing Services,HS001,B&B Payments,1303,10/04/2018,09/04/2018,TRAVELODGE GB0000,THAME,,OX9 3AT,REDACTED,556*********6959,3615,TRAVELODGE,255,Pound Sterling (826),1.000000000,255,Debit,55504438099298109114347,02/05/2018,GLOUCESTER CC
Gloucester City Council,23UE,Housing Services,HS001,B&B Payments,1303,10/04/2018,09/04/2018,TRAVELODGE GB0000,THAME,,OX9 3AT,REDACTED,556*********6959,3615,TRAVELODGE,71,Pound Sterling (826),1.000000000,71,Debit,55504438099298109105824,02/05/2018,GLOUCESTER CC
Gloucester City Council,23UE,Housing Services,HS001,B&B Payments,1303,10/04/2018,09/04/2018,TRAVELODGE GB0000,THAME,,OX9 3AT,REDACTED,556*********6959,3615,TRAVELODGE,317,Pound Sterling (826),1.000000000,317,Debit,55504438099298109101526,02/05/2018,GLOUCESTER CC
Gloucester City Council,23UE,Housing Services,HS001,B&B Payments,1303,10/04/2018,09/04/2018,TRAVELODGE GB0000,THAME,,OX9 3AT,REDACTED,556*********6959,3615,TRAVELODGE,246,Pound Sterling (826),1.000000000,246,Debit,55504438099298109100635,02/05/2018,GLOUCESTER CC
Gloucester City Council,23UE,Housing Services,HS001,B&B Payments,1303,10/04/2018,09/04/2018,TRAVELODGE GB0000,THAME,,OX9 3AT,REDACTED,556*********6959,3615,TRAVELODGE,-246,Pound Sterling (826),1.000000000,-246,Credit,55504438099298109135268,02/05/2018,GLOUCESTER CC
Gloucester City Council,23UE,Housing Services,HS001,B&B Payments,1303,11/04/2018,10/04/2018,TRAVELODGE GB0000,THAME,,OX9 3AT,REDACTED,556*********6959,3615,TRAVELODGE,434,Pound Sterling (826),1.000000000,434,Debit,55504438100298115826873,02/05/2018,GLOUCESTER CC
Gloucester City Council,23UE,Housing Services,HS001,B&B Payments,1303,11/04/2018,10/04/2018,TRAVELODGE GB0000,THAME,,OX9 3AT,REDACTED,556*********6959,3615,TRAVELODGE,92,Pound Sterling (826),1.000000000,92,Debit,55504438100298115844595,02/05/2018,GLOUCESTER CC
Gloucester City Council,23UE,Housing Services,HS001,B&B Payments,1303,11/04/2018,10/04/2018,TRAVELODGE GB0000,THAME,,OX9 3AT,REDACTED,556*********6959,3615,TRAVELODGE,439,Pound Sterling (826),1.000000000,439,Debit,55504438100298115919231,02/05/2018,GLOUCESTER CC
Gloucester City Council,23UE,Housing Services,HS001,B&B Payments,1303,12/04/2018,11/04/2018,Amerisuites,GLOUCESTER,,GL2 4NF,REDACTED,556*********6959,3514,AMERISUITES,285,Pound Sterling (826),1.000000000,285,Debit,85481478102032618855214,02/05/2018,GLOUCESTER CC
Gloucester City Council,23UE,Housing Services,HS001,B&B Payments,1303,12/04/2018,11/04/2018,Amerisuites,GLOUCESTER,,GL2 4NF,REDACTED,556*********6959,3514,AMERISUITES,560,Pound Sterling (826),1.000000000,560,Debit,85481478102032618855222,02/05/2018,GLOUCESTER CC
Gloucester City Council,23UE,Housing Services,HS001,B&B Payments,1303,12/04/2018,11/04/2018,TRAVELODGE GB0000,THAME,,OX9 3AT,REDACTED,556*********6959,3615,TRAVELODGE,414,Pound Sterling (826),1.000000000,414,Debit,55504438101298122295863,02/05/2018,GLOUCESTER CC
Gloucester City Council,23UE,Housing Services,HS001,B&B Payments,1303,12/04/2018,11/04/2018,TRAVELODGE GB0000,THAME,,OX9 3AT,REDACTED,556*********6959,3615,TRAVELODGE,493,Pound Sterling (826),1.000000000,493,Debit,55504438101298122343994,02/05/2018,GLOUCESTER CC
Gloucester City Council,23UE,Housing Services,HS001,B&B Payments,1303,13/04/2018,12/04/2018,TRAVELODGE GB0000,THAME,,OX9 3AT,REDACTED,556*********6959,3615,TRAVELODGE,255,Pound Sterling (826),1.000000000,255,Debit,55504438102298128857038,02/05/2018,GLOUCESTER CC
Gloucester City Council,23UE,Housing Services,HS001,B&B Payments,1303,13/04/2018,12/04/2018,TRAVELODGE GB0000,THAME,,OX9 3AT,REDACTED,556*********6959,3615,TRAVELODGE,67,Pound Sterling (826),1.000000000,67,Debit,55504438102298128864547,02/05/2018,GLOUCESTER CC
Gloucester City Council,23UE,Housing Services,HS001,B&B Payments,1303,13/04/2018,12/04/2018,TRAVELODGE GB0000,THAME,,OX9 3AT,REDACTED,556*********6959,3615,TRAVELODGE,67,Pound Sterling (826),1.000000000,67,Debit,55504438102298128899113,02/05/2018,GLOUCESTER CC
Gloucester City Council,23UE,Housing Services,HS001,B&B Payments,1303,13/04/2018,12/04/2018,TRAVELODGE GB0000,THAME,,OX9 3AT,REDACTED,556*********6959,3615,TRAVELODGE,234,Pound Sterling (826),1.000000000,234,Debit,55504438102298128947409,02/05/2018,GLOUCESTER CC
Gloucester City Council,23UE,Housing Services,HS001,B&B Payments,1303,13/04/2018,12/04/2018,TRAVELODGE GB0000,THAME,,OX9 3AT,REDACTED,556*********6959,3615,TRAVELODGE,-255,Pound Sterling (826),1.000000000,-255,Credit,55504438102298128864695,02/05/2018,GLOUCESTER CC
Gloucester City Council,23UE,Housing Services,HS001,B&B Payments,1303,16/04/2018,13/04/2018,TRAVELODGE GB0000,THAME,,OX9 3AT,REDACTED,556*********6959,3615,TRAVELODGE,179,Pound Sterling (826),1.000000000,179,Debit,55504438103298135690066,02/05/2018,GLOUCESTER CC
Gloucester City Council,23UE,Housing Services,HS001,B&B Payments,1303,16/04/2018,13/04/2018,TRAVELODGE GB0000,THAME,,OX9 3AT,REDACTED,556*********6959,3615,TRAVELODGE,156,Pound Sterling (826),1.000000000,156,Debit,55504438103298135648114,02/05/2018,GLOUCESTER CC
Gloucester City Council,23UE,Housing Services,HS001,B&B Payments,1303,16/04/2018,13/04/2018,TRAVELODGE GB0000,THAME,,OX9 3AT,REDACTED,556*********6959,3615,TRAVELODGE,179,Pound Sterling (826),1.000000000,179,Debit,55504438103298135604356,02/05/2018,GLOUCESTER CC
Gloucester City Council,23UE,Housing Services,HS001,B&B Payments,1303,17/04/2018,16/04/2018,TRAVELODGE GB0000,THAME,,OX9 3AT,REDACTED,556*********6959,3615,TRAVELODGE,71,Pound Sterling (826),1.000000000,71,Debit,55504438106298153552971,02/05/2018,GLOUCESTER CC
Gloucester City Council,23UE,Housing Services,HS001,B&B Payments,1303,17/04/2018,16/04/2018,TRAVELODGE GB0000,THAME,,OX9 3AT,REDACTED,556*********6959,3615,TRAVELODGE,300,Pound Sterling (826),1.000000000,300,Debit,55504438106298153541347,02/05/2018,GLOUCESTER CC
Gloucester City Council,23UE,Housing Services,HS001,B&B Payments,1303,17/04/2018,16/04/2018,TRAVELODGE GB0000,THAME,,OX9 3AT,REDACTED,556*********6959,3615,TRAVELODGE,504,Pound Sterling (826),1.000000000,504,Debit,55504438106298153527296,02/05/2018,GLOUCESTER CC
Gloucester City Council,23UE,Housing Services,HS001,B&B Payments,1303,17/04/2018,16/04/2018,TRAVELODGE GB0000,THAME,,OX9 3AT,REDACTED,556*********6959,3615,TRAVELODGE,249,Pound Sterling (826),1.000000000,249,Debit,55504438106298153502588,02/05/2018,GLOUCESTER CC
Gloucester City Council,23UE,Housing Services,HS001,B&B Payments,1303,17/04/2018,16/04/2018,TRAVELODGE GB0000,THAME,,OX9 3AT,REDACTED,556*********6959,3615,TRAVELODGE,496,Pound Sterling (826),1.000000000,496,Debit,55504438106298153599600,02/05/2018,GLOUCESTER CC
Gloucester City Council,23UE,Housing Services,HS001,B&B Payments,1303,17/04/2018,16/04/2018,HALLMARK HOTEL,GLOUCESTER,,GL4 6EA,REDACTED,556*********6959,7011,"LODGING, HOTELS, MOTELS, RESORTS",255,Pound Sterling (826),1.000000000,255,Debit,85481478107033971674569,02/05/2018,GLOUCESTER CC
Gloucester City Council,23UE,Housing Services,HS001,B&B Payments,1303,17/04/2018,16/04/2018,HALLMARK HOTEL,GLOUCESTER,,GL4 6EA,REDACTED,556*********6959,7011,"LODGING, HOTELS, MOTELS, RESORTS",-225,Pound Sterling (826),1.000000000,-225,Credit,85481478107033971674551,02/05/2018,GLOUCESTER CC
Gloucester City Council,23UE,Housing Services,HS001,B&B Payments,1303,18/04/2018,17/04/2018,Amerisuites,GLOUCESTER,,GL2 4NF,REDACTED,556*********6959,3514,AMERISUITES,285,Pound Sterling (826),1.000000000,285,Debit,85481478108034106170258,02/05/2018,GLOUCESTER CC
Gloucester City Council,23UE,Housing Services,HS001,B&B Payments,1303,18/04/2018,17/04/2018,Amerisuites,GLOUCESTER,,GL2 4NF,REDACTED,556*********6959,3514,AMERISUITES,560,Pound Sterling (826),1.000000000,560,Debit,85481478108034106170266,02/05/2018,GLOUCESTER CC
Gloucester City Council,23UE,Housing Services,HS001,B&B Payments,1303,18/04/2018,17/04/2018,TRAVELODGE GB0000,THAME,,OX9 3AT,REDACTED,556*********6959,3615,TRAVELODGE,439,Pound Sterling (826),1.000000000,439,Debit,55504438107298160659545,02/05/2018,GLOUCESTER CC
Gloucester City Council,23UE,Housing Services,HS001,B&B Payments,1303,19/04/2018,18/04/2018,TRAVELODGE GB0000,THAME,,OX9 3AT,REDACTED,556*********6959,3615,TRAVELODGE,479,Pound Sterling (826),1.000000000,479,Debit,55504438108298167237955,02/05/2018,GLOUCESTER CC
Gloucester City Council,23UE,Housing Services,HS001,B&B Payments,1303,20/04/2018,19/04/2018,TRAVELODGE GB0000,THAME,,OX9 3AT,REDACTED,556*********6959,3615,TRAVELODGE,229,Pound Sterling (826),1.000000000,229,Debit,55504438109298174564523,02/05/2018,GLOUCESTER CC
Gloucester City Council,23UE,Housing Services,HS001,B&B Payments,1303,20/04/2018,19/04/2018,HALLMARK HOTEL,GLOUCESTER,,GL4 6EA,REDACTED,556*********6959,7011,"LODGING, HOTELS, MOTELS, RESORTS",-30,Pound Sterling (826),1.000000000,-30,Credit,85481478110034696088924,02/05/2018,GLOUCESTER CC
Gloucester City Council,23UE,Housing Services,HS001,B&B Payments,1303,24/04/2018,23/04/2018,TRAVELODGE GB0000,THAME,,OX9 3AT,REDACTED,556*********6959,3615,TRAVELODGE,71,Pound Sterling (826),1.000000000,71,Debit,55504438113298101748342,02/05/2018,GLOUCESTER CC
Gloucester City Council,23UE,Housing Services,HS001,B&B Payments,1303,25/04/2018,24/04/2018,TRAVELODGE GB0000,THAME,,OX9 3AT,REDACTED,556*********6959,3615,TRAVELODGE,238,Pound Sterling (826),1.000000000,238,Debit,55504438114298108598053,02/05/2018,GLOUCESTER CC
Gloucester City Council,23UE,Housing Services,HS001,B&B Payments,1303,25/04/2018,24/04/2018,TRAVELODGE GB0000,THAME,,OX9 3AT,REDACTED,556*********6959,3615,TRAVELODGE,423,Pound Sterling (826),1.000000000,423,Debit,55504438114298108504572,02/05/2018,GLOUCESTER CC
Gloucester City Council,23UE,Housing Services,HS001,B&B Payments,1303,25/04/2018,24/04/2018,TRAVELODGE GB0000,THAME,,OX9 3AT,REDACTED,556*********6959,3615,TRAVELODGE,425,Pound Sterling (826),1.000000000,425,Debit,55504438114298108503509,02/05/2018,GLOUCESTER CC
Gloucester City Council,23UE,Housing Services,HS001,B&B Payments,1303,25/04/2018,24/04/2018,Amerisuites,GLOUCESTER,,GL2 4NF,REDACTED,556*********6959,3514,AMERISUITES,285,Pound Sterling (826),1.000000000,285,Debit,85481478115035898657221,02/05/2018,GLOUCESTER CC
Gloucester City Council,23UE,Housing Services,HS001,B&B Payments,1303,25/04/2018,24/04/2018,Amerisuites,GLOUCESTER,,GL2 4NF,REDACTED,556*********6959,3514,AMERISUITES,560,Pound Sterling (826),1.000000000,560,Debit,85481478115035898657239,02/05/2018,GLOUCESTER CC
Gloucester City Council,23UE,Housing Services,HS001,B&B Payments,1303,25/04/2018,24/04/2018,TRAVELODGE GB0000,THAME,,OX9 3AT,REDACTED,556*********6959,3615,TRAVELODGE,-425,Pound Sterling (826),1.000000000,-425,Credit,55504438114295357531587,02/05/2018,GLOUCESTER CC
Gloucester City Council,23UE,Housing Services,HS001,B&B Payments,1303,26/04/2018,25/04/2018,TRAVELODGE GB0000,THAME,,OX9 3AT,REDACTED,556*********6959,3615,TRAVELODGE,154,Pound Sterling (826),1.000000000,154,Debit,55504438115298115165044,02/05/2018,GLOUCESTER CC
Gloucester City Council,23UE,Housing Services,HS001,B&B Payments,1303,26/04/2018,25/04/2018,TRAVELODGE GB0000,THAME,,OX9 3AT,REDACTED,556*********6959,3615,TRAVELODGE,479,Pound Sterling (826),1.000000000,479,Debit,55504438115298115223157,02/05/2018,GLOUCESTER CC
Gloucester City Council,23UE,Housing Services,HS001,B&B Payments,1303,30/04/2018,27/04/2018,TRAVELODGE GB0000,THAME,,OX9 3AT,REDACTED,556*********6959,3615,TRAVELODGE,258,Pound Sterling (826),1.000000000,258,Debit,55504438117298129409394,02/05/2018,GLOUCESTER CC
Gloucester City Council,23UE,Housing Services,HS001,B&B Payments,1303,30/04/2018,27/04/2018,TRAVELODGE GB0000,THAME,,OX9 3AT,REDACTED,556*********6959,3615,TRAVELODGE,58,Pound Sterling (826),1.000000000,58,Debit,55504438117298129492689,02/05/2018,GLOUCESTER CC
Gloucester City Council,23UE,Housing Services,HS001,B&B Payments,1303,30/04/2018,27/04/2018,TRAVELODGE GB0000,THAME,,OX9 3AT,REDACTED,556*********6959,3615,TRAVELODGE,258,Pound Sterling (826),1.000000000,258,Debit,55504438117298129427800,02/05/2018,GLOUCESTER CC
Gloucester City Council,23UE,Housing Services,HS001,B&B Payments,1303,30/04/2018,27/04/2018,TRAVELODGE GB0000,THAME,,OX9 3AT,REDACTED,556*********6959,3615,TRAVELODGE,236,Pound Sterling (826),1.000000000,236,Debit,55504438117298129488281,02/05/2018,GLOUCESTER CC
Gloucester City Council,23UE,Housing Services,HS001,B&B Payments,1303,01/05/2018,30/04/2018,TRAVELODGE GB0000,THAME,,OX9 3AT,REDACTED,556*********6959,3615,TRAVELODGE,304,Pound Sterling (826),1.000000000,304,Debit,55504438120298149686711,02/05/2018,GLOUCESTER CC
Gloucester City Council,23UE,Housing Services,HS001,B&B Payments,1303,01/05/2018,30/04/2018,TRAVELODGE GB0000,THAME,,OX9 3AT,REDACTED,556*********6959,3615,TRAVELODGE,612,Pound Sterling (826),1.000000000,612,Debit,55504438120298149657340,02/05/2018,GLOUCESTER CC
Gloucester City Council,23UE,Housing Services,HS001,B&B Payments,1303,02/05/2018,01/05/2018,TRAVELODGE GB0000,THAME,,OX9 3AT,REDACTED,556*********6959,3615,TRAVELODGE,92,Pound Sterling (826),1.000000000,92,Debit,55504438121298157014482,02/05/2018,GLOUCESTER CC
Gloucester City Council,23UE,Housing Services,HS001,B&B Payments,1303,02/05/2018,01/05/2018,TRAVELODGE GB0000,THAME,,OX9 3AT,REDACTED,556*********6959,3615,TRAVELODGE,538,Pound Sterling (826),1.000000000,538,Debit,55504438121298157007429,02/05/2018,GLOUCESTER CC
Gloucester City Council,23UE,Housing Services,HS001,B&B Payments,1303,02/05/2018,01/05/2018,Amerisuites,GLOUCESTER,,GL2 4NF,REDACTED,556*********6959,3514,AMERISUITES,285,Pound Sterling (826),1.000000000,285,Debit,85481478122037709198891,02/05/2018,GLOUCESTER CC
Gloucester City Council,23UE,Managing Director & Directors,MT001,Public Transport - Staff,2402,10/04/2018,09/04/2018,Trainline,London,GBR,1445,REDACTED,556*********3822,4112,PASSENGER RAILWAYS,159.4,Pound Sterling (826),1.000000000,159.4,Debit,85130088099814772000720,02/05/2018,GLOUCESTER CC
Gloucester City Council,23UE,Public Health,PH001,Public Transport - Staff,2402,12/04/2018,11/04/2018,Trainline,London,GBR,1445,REDACTED,556*********3822,4112,PASSENGER RAILWAYS,45.7,Pound Sterling (826),1.000000000,45.7,Debit,85130088101814849877809,02/05/2018,GLOUCESTER CC
Gloucester City Council,23UE,Economic Development,ED001,Public Transport - Staff,2402,17/04/2018,16/04/2018,Trainline,London,GBR,1445,REDACTED,556*********3822,4112,PASSENGER RAILWAYS,79.5,Pound Sterling (826),1.000000000,79.5,Debit,85130088106815046112556,02/05/2018,GLOUCESTER CC
Gloucester City Council,23UE,Health Administration,HE002,Public Transport - Staff,2402,17/04/2018,16/04/2018,Trainline,London,GBR,1445,REDACTED,556*********3822,4112,PASSENGER RAILWAYS,18.25,Pound Sterling (826),1.000000000,18.25,Debit,85130088106815046126218,02/05/2018,GLOUCESTER CC
Gloucester City Council,23UE,Economic Development,ED001,Public Transport - Staff,2402,17/04/2018,16/04/2018,Trainline,London,GBR,1445,REDACTED,556*********3822,4112,PASSENGER RAILWAYS,-32,Pound Sterling (826),1.000000000,-32,Credit,85130088106815046120641,02/05/2018,GLOUCESTER CC
Gloucester City Council,23UE,Economic Development,ED001,Public Transport - Staff,2402,18/04/2018,16/04/2018,Trainline,London,GBR,1445,REDACTED,556*********3822,4112,PASSENGER RAILWAYS,-32,Pound Sterling (826),1.000000000,-32,Credit,85130088107815087392264,02/05/2018,GLOUCESTER CC
Gloucester City Council,23UE,Head of Regeneration & Economic Development,MT005,Public Transport - Staff,2402,24/04/2018,23/04/2018,Trainline,London,GBR,1445,REDACTED,556*********3822,4112,PASSENGER RAILWAYS,116.9,Pound Sterling (826),1.000000000,116.9,Debit,85130088113816309438580,02/05/2018,GLOUCESTER CC
Gloucester City Council,23UE,Countryside Unit,EP003,Road Fund License,2101,02/05/2018,30/04/2018,DVLA VEHICLE TAX,0300 1234321,,SA6 7JL,REDACTED,556*********3822,9399,GOVERNMENT SERVICES NOT ELSEWHERE CLASSIFIED,317.5,Pound Sterling (826),1.000000000,317.5,Debit,85481478121037307832934,02/05/2018,GLOUCESTER CC
Gloucester City Council,23UE,Gloucester Guildhall,GH001,Equipment and Furniture,3001,03/04/2018,02/04/2018,MICROSOFT *OFFICE 365,MSBILL.INFO,IRL,2,REDACTED,556*********8256,5816,DIGITAL GOODS - GAMES,79.99,Pound Sterling (826),1.000000000,79.99,Debit,15265678092000299180737,02/05/2018,GLOUCESTER CC
Gloucester City Council,23UE,Gloucester Guildhall,GH001,Equipment and Furniture,3001,05/04/2018,04/04/2018,Amazon Prime,amzn.co.uk/pm,LUX,L2338,REDACTED,556*********8256,5968,CONTINUITY/SUBSCRIPTION MERCHANTS,7.99,Pound Sterling (826),1.000000000,7.99,Debit,55204728094200219365290,02/05/2018,GLOUCESTER CC
Gloucester City Council,23UE,Gloucester Guildhall,GH001,Equipment and Furniture,3001,05/04/2018,04/04/2018,AMZ*Amazon.co.uk,AMAZON.CO.UK,LUX,L2338,REDACTED,556*********8256,5969,ALL OTHER DIRECT MARKETERS,-4.75,Pound Sterling (826),1.000000000,-4.75,Credit,55204728094200221963090,02/05/2018,GLOUCESTER CC
Gloucester City Council,23UE,Blackfriars,GH010,Building Repairs and Maintenance,1001,12/04/2018,11/04/2018,B & Q 1179,GLOUCESTER,,GL12SG,REDACTED,556*********8256,5211,LUMBER AND BUILDING MATERIALS STORES,26.48,Pound Sterling (826),1.000000000,26.48,Debit,85481478102032625901001,02/05/2018,GLOUCESTER CC
Gloucester City Council,23UE,Guildhall Cinema,GH003,Advertising & Publicity,3404,12/04/2018,11/04/2018,WWW.INSTANTPRINT.C,01709 382202,,S63 5DR,REDACTED,556*********8256,7338,QUICK-COPY AND REPRODUCTION SERVICES,21.99,Pound Sterling (826),1.000000000,21.99,Debit,85481478102032601528810,02/05/2018,GLOUCESTER CC
Gloucester City Council,23UE,Gloucester Guildhall,GH001,Equipment and Furniture,3001,12/04/2018,11/04/2018,B&M RETAIL LTD,HS GLOUCESTER,,GL12DH,REDACTED,556*********8256,5310,DISCOUNT STORES,5.99,Pound Sterling (826),1.000000000,5.99,Debit,85481478102032696753687,02/05/2018,GLOUCESTER CC
Gloucester City Council,23UE,Guildhall Events,GH002,Professional Advice/Consultants fees,3952,13/04/2018,09/04/2018,MIPERMIT LTD,INTERNET,GBR,SN15 5FD,REDACTED,556*********8256,7523,AUTOMOBILE PARKING LOTS AND GARAGES,60,Pound Sterling (826),1.000000000,60,Debit,25425158103000087304750,02/05/2018,GLOUCESTER CC
Gloucester City Council,23UE,Guildhall Events,GH002,Professional Advice/Consultants fees,3952,13/04/2018,29/03/2018,MIPERMIT LTD,INTERNET,GBR,SN15 5FD,REDACTED,556*********8256,7523,AUTOMOBILE PARKING LOTS AND GARAGES,20,Pound Sterling (826),1.000000000,20,Debit,25425158103000087304743,02/05/2018,GLOUCESTER CC
Gloucester City Council,23UE,Blackfriars,GH010,Building Repairs and Maintenance,1001,16/04/2018,13/04/2018,B & Q 1179,GLOUCESTER,,GL12SG,REDACTED,556*********8256,5211,LUMBER AND BUILDING MATERIALS STORES,48.64,Pound Sterling (826),1.000000000,48.64,Debit,85481478104033108717466,02/05/2018,GLOUCESTER CC
Gloucester City Council,23UE,Gloucester Guildhall,GH001,Building Repairs and Maintenance,1001,16/04/2018,13/04/2018,B & Q 1179,GLOUCESTER,,GL12SG,REDACTED,556*********8256,5211,LUMBER AND BUILDING MATERIALS STORES,10,Pound Sterling (826),1.000000000,10,Debit,85481478104033108717466,02/05/2018,GLOUCESTER CC
Gloucester City Council,23UE,Blackfriars,GH010,Building Repairs and Maintenance,1001,16/04/2018,13/04/2018,B & Q 1179,GLOUCESTER,,GL12SG,REDACTED,556*********8256,5211,LUMBER AND BUILDING MATERIALS STORES,-26.48,Pound Sterling (826),1.000000000,-26.48,Credit,85481478104033108716740,02/05/2018,GLOUCESTER CC
Gloucester City Council,23UE,Guildhall Events,GH002,Advertising & Publicity,3404,17/04/2018,16/04/2018,WWW.INSTANTPRINT.C,01709 382202,,S63 5DR,REDACTED,556*********8256,7338,QUICK-COPY AND REPRODUCTION SERVICES,33.99,Pound Sterling (826),1.000000000,33.99,Debit,85481478107033839182185,02/05/2018,GLOUCESTER CC
Gloucester City Council,23UE,Guildhall Events,GH002,Professional Advice/Consultants fees,3952,18/04/2018,16/04/2018,MIPERMIT LTD,INTERNET,GBR,SN15 5FD,REDACTED,556*********8256,7523,AUTOMOBILE PARKING LOTS AND GARAGES,10,Pound Sterling (826),1.000000000,10,Debit,25425158108030104156714,02/05/2018,GLOUCESTER CC
Gloucester City Council,23UE,Blackfriars Weddings,GH011,Advertising & Publicity,3404,18/04/2018,17/04/2018,VISTAPR*VistaPrint.com,866-8936743,NLD,LW 5928,REDACTED,556*********8256,2741,MISCELLANEOUS PUBLISHING & PRINTING,42.92,Pound Sterling (826),1.000000000,42.92,Debit,55204728107200660688021,02/05/2018,GLOUCESTER CC
Gloucester City Council,23UE,Blackfriars Weddings,GH011,Advertising & Publicity,3404,18/04/2018,17/04/2018,WWW.INSTANTPRINT.C,01709 382202,,S63 5DR,REDACTED,556*********8256,7338,QUICK-COPY AND REPRODUCTION SERVICES,31.99,Pound Sterling (826),1.000000000,31.99,Debit,85481478108034073634831,02/05/2018,GLOUCESTER CC
Gloucester City Council,23UE,Gloucester Guildhall,GP001,Mileage and Travel Allowances,2401,18/04/2018,17/04/2018,NATIONAL EXPRESS LIMIT,BIRMINGHAM,,B5 6DD,REDACTED,556*********8256,4131,"BUS LINES, CHARTERS, TOUR BUSES",26.8,Pound Sterling (826),1.000000000,26.8,Debit,85481478108034162339045,02/05/2018,GLOUCESTER CC
Gloucester City Council,23UE,Guildhall Events,GH002,Professional Advice/Consultants fees,3952,24/04/2018,18/04/2018,MIPERMIT LTD,INTERNET,GBR,SN15 5FD,REDACTED,556*********8256,7523,AUTOMOBILE PARKING LOTS AND GARAGES,40,Pound Sterling (826),1.000000000,40,Debit,25425158114070087292732,02/05/2018,GLOUCESTER CC
Gloucester City Council,23UE,Gloucester Guildhall,GH001,Building Repairs and Maintenance,1001,30/04/2018,27/04/2018,B & Q 1179,GLOUCESTER,,GL12SG,REDACTED,556*********8256,5211,LUMBER AND BUILDING MATERIALS STORES,50.63,Pound Sterling (826),1.000000000,50.63,Debit,85481478118036493401129,02/05/2018,GLOUCESTER CC
Gloucester City Council,23UE,Gloucester Guildhall,GH001,Building Repairs and Maintenance,1001,30/04/2018,27/04/2018,B & Q 1179,GLOUCESTER,,GL12SG,REDACTED,556*********8256,5211,LUMBER AND BUILDING MATERIALS STORES,1.53,Pound Sterling (826),1.000000000,1.53,Debit,85481478118036493401137,02/05/2018,GLOUCESTER CC
Gloucester City Council,23UE,Guildhall Events,GH002,Advertising & Publicity,3404,01/05/2018,30/04/2018,FACEBK UBMW7GE5M2,fb.me/ads,IRL,2,REDACTED,556*********8256,7311,ADVERTISING SERVICES,122.72,Pound Sterling (826),1.000000000,122.72,Debit,15265678120269373640629,02/05/2018,GLOUCESTER CC
Gloucester City Council,23UE,Guildhall Events,GH002,Advertising & Publicity,3404,01/05/2018,30/04/2018,FACEBK VBMW7GE5M2,fb.me/ads,IRL,2,REDACTED,556*********8256,7311,ADVERTISING SERVICES,0.85,Pound Sterling (826),1.000000000,0.85,Debit,15265678120286850241531,02/05/2018,GLOUCESTER CC
Gloucester City Council,23UE,Guildhall Events,GH002,Advertising & Publicity,3404,01/05/2018,30/04/2018,FACEBK FT3WPF2LR2,fb.me/ads,IRL,2,REDACTED,556*********8256,7311,ADVERTISING SERVICES,58.55,Pound Sterling (826),1.000000000,58.55,Debit,15265678120291511573736,02/05/2018,GLOUCESTER CC
Gloucester City Council,23UE,Health & Safety,HE003,External Training Course Fees,0550,04/04/2018,03/04/2018,WWW.THEFPA.CO.UK,INTERNET,GBR,GL56 0RH,REDACTED,556*********3063,2741,MISCELLANEOUS PUBLISHING & PRINTING,936,Pound Sterling (826),1.000000000,936,Debit,25425158094030085539876,02/05/2018,GLOUCESTER CC
Gloucester City Council,23UE,Civica Admin Charges,BI002,Professional Advice/Consultants fees,3952,04/04/2018,03/04/2018,HMCOURTS-SERVICE.G,01452420100,,GL12ZG,REDACTED,556*********3063,9222,FINES,2868,Pound Sterling (826),1.000000000,2868,Debit,85481478094030717480348,02/05/2018,GLOUCESTER CC
Gloucester City Council,23UE,Business Transformation,BI006,ICT New Hardware,3523,18/04/2018,17/04/2018,WWW.AJPARTS.CO.UK,0208 9120552,,UB7 8EW,REDACTED,556*********3063,5045,"COMPUTERS,COMPUTER PERIPHERAL EQUIPMENT, SOFTWARE",32.1,Pound Sterling (826),1.000000000,32.1,Debit,85481478108034034266749,02/05/2018,GLOUCESTER CC
Gloucester City Council,23UE,Business Transformation,BI006,ICT New Hardware,3523,30/04/2018,28/04/2018,Amazon UK Marketplace,800-279-6620,LUX,L2338,REDACTED,556*********3063,5942,BOOK STORES,100.59,Pound Sterling (826),1.000000000,100.59,Debit,55204728118200699878012,02/05/2018,GLOUCESTER CC
Gloucester City Council,23UE,Business Transformation,BI006,ICT New Hardware,3523,30/04/2018,29/04/2018,Amazon UK Marketplace,800-279-6620,LUX,L2338,REDACTED,556*********3063,5942,BOOK STORES,28.98,Pound Sterling (826),1.000000000,28.98,Debit,55204728119200876456375,02/05/2018,GLOUCESTER CC
Gloucester City Council,23UE,Business Transformation,BI006,Equipment and Furniture,3001,30/04/2018,29/04/2018,Amazon UK Marketplace,800-279-6620,LUX,L2338,REDACTED,556*********3063,5942,BOOK STORES,107.94,Pound Sterling (826),1.000000000,107.94,Debit,55204728119200903620811,02/05/2018,GLOUCESTER CC
